[Event "*** Titled Tuesday Blitz"]
[Site "Chess.com"]
[Date "2018.05.01"]
[Round "2"]
[White "GoingKronos"]
[Black "amatatanav"]
[Result "0-1"]
[WhiteElo "2371"]
[BlackElo "2395"]
[TimeControl "180+2"]
[EndTime "13:21:37 PDT"]
[Termination "amatatanav won by resignation"]

1. Nf3 {[%clk 0:03:00.2]} 1... Nf6 {[%clk 0:02:58.8]} 2. d4 {[%clk 0:02:59.7]}
2... e6 {[%clk 0:02:59.5]} 3. c4 {[%clk 0:03:00.4]} 3... d5 {[%clk 0:03:00.6]}
4. Nc3 {[%clk 0:03:00.2]} 4... Be7 {[%clk 0:03:01.1]} 5. Bg5 {[%clk 0:02:59.7]}
5... h6 {[%clk 0:03:01.9]} 6. Bh4 {[%clk 0:03:00]} 6... O-O {[%clk 0:03:02.4]}
7. e3 {[%clk 0:03:00.8]} 7... b6 {[%clk 0:03:03.8]} 8. Bd3 {[%clk 0:03:01]} 8...
Bb7 {[%clk 0:02:54.2]} 9. O-O {[%clk 0:03:01]} 9... Nbd7 {[%clk 0:02:51]} 10.
Qe2 {[%clk 0:03:00.7]} 10... c5 {[%clk 0:02:46.8]} 11. cxd5 {[%clk 0:02:55.6]}
11... Nxd5 {[%clk 0:02:46.2]} 12. Bxe7 {[%clk 0:02:54.4]} 12... Qxe7 {[%clk
0:02:48.1]} 13. Ba6 {[%clk 0:02:38.3]} 13... Bxa6 {[%clk 0:01:54.2]} 14. Qxa6
{[%clk 0:02:38.4]} 14... Nb4 {[%clk 0:01:37.5]} 15. Qe2 {[%clk 0:02:35]} 15...
cxd4 {[%clk 0:01:31.5]} 16. Nxd4 {[%clk 0:02:35.9]} 16... Rfc8 {[%clk
0:01:14.5]} 17. Rac1 {[%clk 0:02:34.5]} 17... Nf6 {[%clk 0:00:55]} 18. e4 {[%clk
0:02:14.5]} 18... Qc5 {[%clk 0:00:22.1]} 19. Nb3 {[%clk 0:02:03.5]} 19... Qh5
{[%clk 0:00:22.7]} 20. f3 {[%clk 0:01:55.2]} 20... Nc6 {[%clk 0:00:09.5]} 21.
Rfd1 {[%clk 0:01:51.4]} 21... Rd8 {[%clk 0:00:10.3]} 22. Qe3 {[%clk 0:01:42.7]}
22... Qe5 {[%clk 0:00:10.6]} 23. Ne2 {[%clk 0:01:14.4]} 23... Rxd1+ {[%clk
0:00:09]} 24. Rxd1 {[%clk 0:01:15.5]} 24... Qxb2 {[%clk 0:00:09.9]} 25. Rd2
{[%clk 0:01:13.2]} 25... Qa3 {[%clk 0:00:09.2]} 26. Rc2 {[%clk 0:01:07.3]} 26...
Na5 {[%clk 0:00:09.9]} 27. h3 {[%clk 0:00:57.8]} 27... Nxb3 {[%clk 0:00:09.8]}
28. axb3 {[%clk 0:00:59.7]} 28... Rd8 {[%clk 0:00:10.3]} 29. Rc7 {[%clk
0:00:52.2]} 29... Rd7 {[%clk 0:00:10.8]} 30. Rc8+ {[%clk 0:00:52.6]} 30... Kh7
{[%clk 0:00:11.3]} 31. e5 {[%clk 0:00:53.9]} 31... Nd5 {[%clk 0:00:08]} 32. Qe4+
{[%clk 0:00:54.8]} 32... g6 {[%clk 0:00:09.1]} 33. Kh2 {[%clk 0:00:49.6]} 33...
Qxb3 {[%clk 0:00:09.5]} 34. Ng3 {[%clk 0:00:31]} 34... Qe3 {[%clk 0:00:10.1]}
35. Qa4 {[%clk 0:00:31.8]} 35... Re7 {[%clk 0:00:08.9]} 36. Qa1 {[%clk
0:00:26.6]} 36... Qf4 {[%clk 0:00:09.3]} 37. Qe1 {[%clk 0:00:22.1]} 37... h5
{[%clk 0:00:09.5]} 38. Kh1 {[%clk 0:00:22.4]} 38... Qh4 {[%clk 0:00:09.4]} 39.
Qf2 {[%clk 0:00:20.2]} 39... a5 {[%clk 0:00:09.4]} 40. Ne4 {[%clk 0:00:20.8]}
40... Qxf2 {[%clk 0:00:10]} 41. Nxf2 {[%clk 0:00:22.7]} 41... Rc7 {[%clk
0:00:11.1]} 42. Ne4 {[%clk 0:00:24.6]} 42... Rxc8 {[%clk 0:00:11.9]} 0-1

[Event "*** Titled Tuesday Blitz"]
[Site "Chess.com"]
[Date "2018.05.01"]
[Round "2"]
[White "OparinGrigoriy"]
[Black "jk13"]
[Result "1-0"]
[WhiteElo "2872"]
[BlackElo "2519"]
[TimeControl "180+2"]
[EndTime "13:22:08 PDT"]
[Termination "OparinGrigoriy won by resignation"]

1. e4 {[%clk 0:03:01.5]} 1... e5 {[%clk 0:03:00.6]} 2. Nf3 {[%clk 0:03:02.1]}
2... Nc6 {[%clk 0:03:02.2]} 3. Bc4 {[%clk 0:03:01.5]} 3... Bc5 {[%clk
0:03:02.6]} 4. c3 {[%clk 0:02:59.8]} 4... Nf6 {[%clk 0:03:03.3]} 5. d3 {[%clk
0:03:00.4]} 5... O-O {[%clk 0:03:03]} 6. Nbd2 {[%clk 0:03:01.3]} 6... d5 {[%clk
0:03:02.6]} 7. exd5 {[%clk 0:03:01.8]} 7... Nxd5 {[%clk 0:03:04.5]} 8. Ne4
{[%clk 0:03:00.8]} 8... Be7 {[%clk 0:03:03.4]} 9. O-O {[%clk 0:03:00.6]} 9...
Nb6 {[%clk 0:03:01.5]} 10. Bb3 {[%clk 0:02:58.9]} 10... Bg4 {[%clk 0:02:57.4]}
11. h3 {[%clk 0:02:59.3]} 11... Bh5 {[%clk 0:02:58.1]} 12. Re1 {[%clk
0:03:00.7]} 12... Bg6 {[%clk 0:02:41.1]} 13. a4 {[%clk 0:02:39]} 13... a5 {[%clk
0:02:42.1]} 14. Be3 {[%clk 0:02:19.7]} 14... Kh8 {[%clk 0:02:26.5]} 15. Bxb6
{[%clk 0:02:18.9]} 15... cxb6 {[%clk 0:02:27.4]} 16. Qe2 {[%clk 0:02:04.8]}
16... f5 {[%clk 0:02:23.1]} 17. Ng3 {[%clk 0:02:02.1]} 17... Bf6 {[%clk
0:02:24.6]} 18. Rad1 {[%clk 0:02:01.5]} 18... Qc7 {[%clk 0:02:19.7]} 19. Be6
{[%clk 0:02:00.1]} 19... Be7 {[%clk 0:01:15]} 20. h4 {[%clk 0:01:39.1]} 20... h6
{[%clk 0:01:11.4]} 21. h5 {[%clk 0:01:37.4]} 21... Bh7 {[%clk 0:01:12.1]} 22.
Bd5 {[%clk 0:01:30.8]} 22... Bd6 {[%clk 0:01:03.6]} 23. Bxc6 {[%clk 0:01:31.3]}
23... bxc6 {[%clk 0:01:05.1]} 24. Nxe5 {[%clk 0:01:32.9]} 24... f4 {[%clk
0:00:59.6]} 25. Nf1 {[%clk 0:01:31.8]} 25... Rae8 {[%clk 0:00:53.8]} 26. d4
{[%clk 0:01:32.6]} 26... f3 {[%clk 0:00:44.1]} 27. gxf3 {[%clk 0:01:33.1]} 27...
Bxe5 {[%clk 0:00:41.3]} 28. dxe5 {[%clk 0:01:33]} 28... Qf7 {[%clk 0:00:43.2]}
29. Ng3 {[%clk 0:01:33]} 29... Qf4 {[%clk 0:00:38.7]} 30. Rd4 {[%clk 0:01:29.8]}
30... Qg5 {[%clk 0:00:37.5]} 31. Qe3 {[%clk 0:01:24]} 31... Qe7 {[%clk
0:00:36.6]} 32. e6 {[%clk 0:01:23.5]} 32... Rf6 {[%clk 0:00:32.4]} 33. Rd7
{[%clk 0:01:17.8]} 33... Qxe6 {[%clk 0:00:29.7]} 34. Qxe6 {[%clk 0:01:17.1]}
34... Rfxe6 {[%clk 0:00:31.6]} 35. Rxe6 {[%clk 0:01:17.9]} 35... Rxe6 {[%clk
0:00:33.5]} 36. Rd8+ {[%clk 0:01:18.4]} 36... Bg8 {[%clk 0:00:34.6]} 37. Rb8
{[%clk 0:01:01.4]} 37... c5 {[%clk 0:00:35.6]} 38. Nf5 {[%clk 0:00:54.7]} 38...
Re5 {[%clk 0:00:25.4]} 39. Ne3 {[%clk 0:00:55.2]} 39... Kh7 {[%clk 0:00:20.9]}
40. Rxb6 {[%clk 0:00:55.2]} 40... Rxh5 {[%clk 0:00:21.9]} 41. Rb5 {[%clk
0:00:55.3]} 41... Bf7 {[%clk 0:00:21.3]} 42. Rxa5 {[%clk 0:00:54.7]} 42... Bb3
{[%clk 0:00:22.4]} 43. f4 {[%clk 0:00:44.6]} 43... Rh4 {[%clk 0:00:21.1]} 44.
Rxc5 {[%clk 0:00:45]} 44... Bxa4 {[%clk 0:00:20.7]} 45. f5 {[%clk 0:00:40]}
45... Bb3 {[%clk 0:00:15.6]} 46. Rc7 {[%clk 0:00:35.7]} 46... Rf4 {[%clk
0:00:15.6]} 47. Kg2 {[%clk 0:00:34.6]} 47... h5 {[%clk 0:00:16.2]} 48. Kg3
{[%clk 0:00:34.7]} 48... Ra4 {[%clk 0:00:14.6]} 49. f6 {[%clk 0:00:35.8]} 49...
Kg6 {[%clk 0:00:15]} 50. fxg7 {[%clk 0:00:36]} 50... h4+ {[%clk 0:00:16.7]} 51.
Kh2 {[%clk 0:00:36.5]} 51... Kg5 {[%clk 0:00:17.1]} 52. c4 {[%clk 0:00:36.9]}
52... Ra8 {[%clk 0:00:18.7]} 53. Nd5 {[%clk 0:00:37.4]} 53... Kh6 {[%clk
0:00:18.3]} 54. Nf6 {[%clk 0:00:36.6]} 54... Bxc4 {[%clk 0:00:17.7]} 55. Rxc4
{[%clk 0:00:36.3]} 55... Kxg7 {[%clk 0:00:19.6]} 56. Ng4 {[%clk 0:00:36.9]}
56... Ra2 {[%clk 0:00:20]} 57. b4 {[%clk 0:00:38.2]} 1-0

[Event "*** Titled Tuesday Blitz"]
[Site "Chess.com"]
[Date "2018.05.01"]
[Round "2"]
[White "JoachimBN"]
[Black "abubakrtagelsir"]
[Result "1-0"]
[WhiteElo "2560"]
[BlackElo "2329"]
[TimeControl "180+2"]
[EndTime "13:22:12 PDT"]
[Termination "JoachimBN won by resignation"]

1. c4 {[%clk 0:03:01.9]} 1... c6 {[%clk 0:03:00.1]} 2. Nc3 {[%clk 0:02:44.7]}
2... d5 {[%clk 0:03:00.3]} 3. e3 {[%clk 0:02:45.6]} 3... Nf6 {[%clk 0:02:54.4]}
4. Nf3 {[%clk 0:02:45.3]} 4... a6 {[%clk 0:02:42.4]} 5. b3 {[%clk 0:02:45.8]}
5... Bg4 {[%clk 0:02:39]} 6. h3 {[%clk 0:02:46.5]} 6... Bh5 {[%clk 0:02:39.3]}
7. Bb2 {[%clk 0:02:47.7]} 7... e6 {[%clk 0:02:39.7]} 8. Be2 {[%clk 0:02:47.9]}
8... Nbd7 {[%clk 0:02:40.1]} 9. O-O {[%clk 0:02:48.9]} 9... Bd6 {[%clk
0:02:40.2]} 10. d4 {[%clk 0:02:49.9]} 10... O-O {[%clk 0:02:40.2]} 11. Ne5
{[%clk 0:02:51.2]} 11... Bxe5 {[%clk 0:02:26.9]} 12. Bxh5 {[%clk 0:02:47.5]}
12... Bc7 {[%clk 0:02:25.6]} 13. Bf3 {[%clk 0:02:43.4]} 13... Rc8 {[%clk
0:02:12.6]} 14. Rc1 {[%clk 0:02:35.7]} 14... dxc4 {[%clk 0:02:05.8]} 15. bxc4
{[%clk 0:02:37.6]} 15... Nb6 {[%clk 0:02:06.3]} 16. Qb3 {[%clk 0:02:35.6]} 16...
Qd6 {[%clk 0:02:00.5]} 17. g3 {[%clk 0:02:36.5]} 17... Qe7 {[%clk 0:01:59]} 18.
Ba3 {[%clk 0:02:37]} 18... Qd7 {[%clk 0:01:59.9]} 19. Bxf8 {[%clk 0:02:37.7]}
19... Rxf8 {[%clk 0:02:01.3]} 20. c5 {[%clk 0:02:32.4]} 20... Nbd5 {[%clk
0:02:01.1]} 21. Qxb7 {[%clk 0:02:25.5]} 21... a5 {[%clk 0:01:59.7]} 22. Qb3
{[%clk 0:02:19.5]} 22... h5 {[%clk 0:01:46.3]} 23. h4 {[%clk 0:02:11.5]} 23...
g6 {[%clk 0:01:45.1]} 24. e4 {[%clk 0:02:07.1]} 24... Ne7 {[%clk 0:01:44.6]} 25.
Rcd1 {[%clk 0:02:05.6]} 25... Qc8 {[%clk 0:01:31.8]} 26. Rfe1 {[%clk 0:02:00.8]}
26... e5 {[%clk 0:01:31.9]} 27. d5 {[%clk 0:01:53.2]} 27... cxd5 {[%clk
0:01:20.6]} 28. exd5 {[%clk 0:01:55.1]} 28... Nf5 {[%clk 0:01:10.3]} 29. d6
{[%clk 0:01:52.5]} 29... Nd4 {[%clk 0:01:09.1]} 30. Rxd4 {[%clk 0:01:52.9]}
30... exd4 {[%clk 0:01:09.2]} 31. Nd5 {[%clk 0:01:51.5]} 31... Bd8 {[%clk
0:01:01.5]} 32. c6 {[%clk 0:01:51.2]} 32... Qf5 {[%clk 0:00:45.6]} 33. c7 {[%clk
0:01:45.3]} 33... Nxd5 {[%clk 0:00:46]} 34. Qxd5 {[%clk 0:01:47.2]} 34... Bxc7
{[%clk 0:00:44]} 35. Qxf5 {[%clk 0:01:39.6]} 35... gxf5 {[%clk 0:00:43]} 36.
dxc7 {[%clk 0:01:41.4]} 36... Rc8 {[%clk 0:00:43.4]} 37. Rc1 {[%clk 0:01:42.6]}
37... d3 {[%clk 0:00:42.8]} 38. Kf1 {[%clk 0:01:34.8]} 38... d2 {[%clk
0:00:43.2]} 39. Rd1 {[%clk 0:01:36.3]} 39... Rxc7 {[%clk 0:00:43.7]} 40. Rxd2
{[%clk 0:01:37.8]} 40... Rc5 {[%clk 0:00:44.2]} 41. Bxh5 {[%clk 0:01:36.8]}
41... Kg7 {[%clk 0:00:43.2]} 42. Bf3 {[%clk 0:01:38.1]} 42... Kf6 {[%clk
0:00:39.8]} 43. Ke2 {[%clk 0:01:37.1]} 43... a4 {[%clk 0:00:39.8]} 44. Kd3
{[%clk 0:01:37]} 44... a3 {[%clk 0:00:37.5]} 45. Rc2 {[%clk 0:01:37.5]} 45...
Ra5 {[%clk 0:00:32.4]} 46. Kc3 {[%clk 0:01:34.2]} 46... f4 {[%clk 0:00:33.1]}
47. g4 {[%clk 0:01:34.9]} 47... Ke5 {[%clk 0:00:25.4]} 48. Re2+ {[%clk
0:01:34.2]} 48... Kd6 {[%clk 0:00:21.1]} 49. Re4 {[%clk 0:01:34.9]} 49... f5
{[%clk 0:00:21.7]} 50. Rxf4 {[%clk 0:01:33.2]} 50... fxg4 {[%clk 0:00:22.8]} 51.
Bxg4 {[%clk 0:01:34.3]} 51... Rb5 {[%clk 0:00:19.3]} 52. Rb4 {[%clk 0:01:31]}
52... Rc5+ {[%clk 0:00:15.7]} 53. Kb3 {[%clk 0:01:32.1]} 53... Rc1 {[%clk
0:00:15.8]} 54. Kxa3 {[%clk 0:01:32.5]} 54... Rh1 {[%clk 0:00:16.1]} 55. h5
{[%clk 0:01:33.4]} 55... Kc5 {[%clk 0:00:16.2]} 56. Re4 {[%clk 0:01:31.3]} 56...
Rh2 {[%clk 0:00:16.7]} 57. f3 {[%clk 0:01:32.2]} 57... Kb5 {[%clk 0:00:14.9]}
58. Kb3 {[%clk 0:01:28.9]} 58... Rh1 {[%clk 0:00:13.9]} 59. a4+ {[%clk 0:01:30]}
59... Kc5 {[%clk 0:00:14.4]} 60. Re5+ {[%clk 0:01:30]} 60... Kd4 {[%clk
0:00:15.1]} 61. Re4+ {[%clk 0:01:26.5]} 61... Kc5 {[%clk 0:00:15.3]} 62. Rc4+
{[%clk 0:01:23.6]} 62... Kd5 {[%clk 0:00:14.3]} 63. Rc2 {[%clk 0:01:25]} 63...
Rb1+ {[%clk 0:00:11.8]} 64. Kc3 {[%clk 0:01:25.7]} 64... Ra1 {[%clk 0:00:12.4]}
65. Kb4 {[%clk 0:01:27.2]} 1-0

[Event "*** Titled Tuesday Blitz"]
[Site "Chess.com"]
[Date "2018.05.01"]
[Round "2"]
[White "el-reptiliano"]
[Black "aa175"]
[Result "0-1"]
[WhiteElo "1568"]
[BlackElo "1863"]
[TimeControl "180+2"]
[EndTime "13:22:13 PDT"]
[Termination "aa175 won on time"]

1. d4 {[%clk 0:03:01.9]} 1... e5 {[%clk 0:02:59.6]} 2. dxe5 {[%clk 0:03:01.5]}
2... Nc6 {[%clk 0:02:59.2]} 3. Nf3 {[%clk 0:03:01]} 3... Qe7 {[%clk 0:02:59.9]}
4. Bf4 {[%clk 0:02:49.1]} 4... Qb4+ {[%clk 0:02:59.9]} 5. Bd2 {[%clk 0:02:49.5]}
5... Qxb2 {[%clk 0:03:00.1]} 6. Bc3 {[%clk 0:02:50.2]} 6... Bb4 {[%clk
0:03:01.1]} 7. Bxb4 {[%clk 0:02:50.5]} 7... Nxb4 {[%clk 0:03:01]} 8. Na3 {[%clk
0:02:29.1]} 8... Qxa3 {[%clk 0:03:00.6]} 9. Rc1 {[%clk 0:02:29.8]} 9... Nxa2
{[%clk 0:02:57.2]} 10. Ra1 {[%clk 0:02:27.4]} 10... Qc3+ {[%clk 0:02:56.9]} 11.
Nd2 {[%clk 0:02:28.7]} 11... Nb4 {[%clk 0:02:58.3]} 12. Rc1 {[%clk 0:02:29.8]}
12... Ne7 {[%clk 0:02:57.6]} 13. e3 {[%clk 0:02:27.1]} 13... b6 {[%clk
0:02:49.5]} 14. Be2 {[%clk 0:02:24.5]} 14... Bb7 {[%clk 0:02:49.8]} 15. O-O
{[%clk 0:02:24.5]} 15... O-O {[%clk 0:02:49]} 16. Bf3 {[%clk 0:02:23.3]} 16...
Bxf3 {[%clk 0:02:49.4]} 17. Nxf3 {[%clk 0:02:25.2]} 17... Rfd8 {[%clk
0:02:34.2]} 18. Nd4 {[%clk 0:02:17.5]} 18... c5 {[%clk 0:02:31.4]} 19. Nf3
{[%clk 0:02:05.1]} 19... Nbc6 {[%clk 0:02:17.8]} 20. Qd6 {[%clk 0:01:46.7]}
20... Nf5 {[%clk 0:02:15.1]} 21. Qd5 {[%clk 0:01:46.6]} 21... Nce7 {[%clk
0:02:09.8]} 22. Qa2 {[%clk 0:01:39.9]} 22... h6 {[%clk 0:02:07.8]} 23. Rfd1
{[%clk 0:01:21.8]} 23... d5 {[%clk 0:02:04.1]} 24. exd6 {[%clk 0:01:07.7]} 24...
Rxd6 {[%clk 0:02:04.4]} 25. Qa4 {[%clk 0:01:03.4]} 25... Rad8 {[%clk 0:01:57.9]}
26. Re1 {[%clk 0:01:01.8]} 26... R6d7 {[%clk 0:01:47.3]} 27. Rb1 {[%clk
0:00:56]} 27... Ng6 {[%clk 0:01:40.3]} 28. h3 {[%clk 0:00:51.2]} 28... Ne5
{[%clk 0:01:38.7]} 29. Nxe5 {[%clk 0:00:30.4]} 29... Qxe5 {[%clk 0:01:40.6]} 30.
Ra1 {[%clk 0:00:28.8]} 30... Qe7 {[%clk 0:01:29.4]} 31. Qg4 {[%clk 0:00:26.6]}
31... Qg5 {[%clk 0:01:27.5]} 32. Qe4 {[%clk 0:00:22.9]} 32... Nd6 {[%clk
0:01:16.7]} 33. Qc6 {[%clk 0:00:21.9]} 33... Qf6 {[%clk 0:01:13.7]} 34. e4
{[%clk 0:00:20.2]} 34... Nc4 {[%clk 0:01:09.4]} 35. Qxf6 {[%clk 0:00:16.3]}
35... gxf6 {[%clk 0:01:11.3]} 36. Ra4 {[%clk 0:00:14.5]} 36... b5 {[%clk
0:01:08.6]} 37. Ra6 {[%clk 0:00:14.1]} 37... Rd1 {[%clk 0:01:08.1]} 38. Kf1
{[%clk 0:00:11.5]} 38... Nd2+ {[%clk 0:01:06.8]} 39. Ke2 {[%clk 0:00:10.7]}
39... Rxe1+ {[%clk 0:01:08.7]} 40. Kxe1 {[%clk 0:00:11.3]} 40... Nxe4 {[%clk
0:01:10.6]} 41. f3 {[%clk 0:00:12.1]} 41... Nc3 {[%clk 0:01:02.4]} 42. Rxa7
{[%clk 0:00:12.2]} 42... Rd1+ {[%clk 0:01:02.6]} 43. Kf2 {[%clk 0:00:13.7]}
43... Rd2+ {[%clk 0:01:04.5]} 44. Ke3 {[%clk 0:00:15.5]} 44... Rxg2 {[%clk
0:00:54.1]} 45. Kf4 {[%clk 0:00:14.4]} 45... Rxc2 {[%clk 0:00:53.7]} 46. Kf5
{[%clk 0:00:15.1]} 46... Kg7 {[%clk 0:00:53.9]} 47. Ra6 {[%clk 0:00:16.7]} 47...
Nd5 {[%clk 0:00:52.9]} 48. Ra1 {[%clk 0:00:16.5]} 48... Ne3+ {[%clk 0:00:49.4]}
49. Ke4 {[%clk 0:00:16.2]} 49... f5+ {[%clk 0:00:50.4]} 50. Kxe3 {[%clk
0:00:16]} 50... b4 {[%clk 0:00:49.5]} 51. Kf4 {[%clk 0:00:16.9]} 51... b3 {[%clk
0:00:50.4]} 52. Kxf5 {[%clk 0:00:16.6]} 52... b2 {[%clk 0:00:51.8]} 53. Rg1+
{[%clk 0:00:17.7]} 53... Kf8 {[%clk 0:00:50.6]} 54. Rb1 {[%clk 0:00:19.1]} 54...
c4 {[%clk 0:00:51.5]} 55. Kf6 {[%clk 0:00:20.7]} 55... c3 {[%clk 0:00:52.8]} 56.
Rd1 {[%clk 0:00:22.1]} 56... Rd2 {[%clk 0:00:50]} 57. Rb1 {[%clk 0:00:13]} 57...
Rd6+ {[%clk 0:00:48.1]} 58. Ke5 {[%clk 0:00:14.1]} 58... Rb6 {[%clk 0:00:49.7]}
59. Kf5 {[%clk 0:00:10.6]} 59... c2 {[%clk 0:00:51]} 0-1

[Event "*** Titled Tuesday Blitz"]
[Site "Chess.com"]
[Date "2018.05.01"]
[Round "2"]
[White "Bryakin_Mikhail"]
[Black "Turkey-Champion"]
[Result "1-0"]
[WhiteElo "2600"]
[BlackElo "2294"]
[TimeControl "180+2"]
[EndTime "13:22:17 PDT"]
[Termination "Bryakin_Mikhail won by checkmate"]

1. d4 {[%clk 0:03:01.2]} 1... Nf6 {[%clk 0:03:00.9]} 2. c4 {[%clk 0:03:02.5]}
2... g6 {[%clk 0:02:59.6]} 3. Nc3 {[%clk 0:03:03.5]} 3... d5 {[%clk 0:03:00.9]}
4. Bf4 {[%clk 0:03:03.9]} 4... Bg7 {[%clk 0:03:01.7]} 5. e3 {[%clk 0:03:05.3]}
5... O-O {[%clk 0:03:02.6]} 6. Rc1 {[%clk 0:03:03.3]} 6... Nc6 {[%clk
0:03:03.2]} 7. Nf3 {[%clk 0:03:00.8]} 7... Bg4 {[%clk 0:03:03.7]} 8. Be2 {[%clk
0:03:00]} 8... a6 {[%clk 0:02:58.6]} 9. O-O {[%clk 0:03:00.6]} 9... dxc4 {[%clk
0:02:59.9]} 10. Bxc4 {[%clk 0:03:02.5]} 10... b5 {[%clk 0:03:01.2]} 11. Be2
{[%clk 0:03:03.7]} 11... e6 {[%clk 0:02:47.8]} 12. h3 {[%clk 0:03:04.2]} 12...
Bf5 {[%clk 0:02:47.5]} 13. Nxb5 {[%clk 0:02:59.2]} 13... axb5 {[%clk 0:02:47.7]}
14. Rxc6 {[%clk 0:03:00.7]} 14... Be4 {[%clk 0:02:48.2]} 15. Bxc7 {[%clk
0:02:50.8]} 15... Qe8 {[%clk 0:02:08.8]} 16. Rc1 {[%clk 0:02:36.4]} 16... Qe7
{[%clk 0:01:51.9]} 17. a3 {[%clk 0:02:31.2]} 17... Rfc8 {[%clk 0:01:52.2]} 18.
Be5 {[%clk 0:02:25.8]} 18... b4 {[%clk 0:01:48.6]} 19. Rxc8+ {[%clk 0:02:22.5]}
19... Rxc8 {[%clk 0:01:49.3]} 20. Qb3 {[%clk 0:02:24.4]} 20... bxa3 {[%clk
0:01:49.5]} 21. Qxa3 {[%clk 0:02:26.3]} 21... Qxa3 {[%clk 0:01:48.4]} 22. bxa3
{[%clk 0:02:28.2]} 22... Ra8 {[%clk 0:01:50]} 23. Ra1 {[%clk 0:02:28.6]} 23...
Nd7 {[%clk 0:01:37.6]} 24. Bxg7 {[%clk 0:02:30.5]} 24... Kxg7 {[%clk 0:01:39.5]}
25. Nd2 {[%clk 0:02:30.2]} 25... Bc6 {[%clk 0:01:39.5]} 26. Bc4 {[%clk
0:02:15.9]} 26... Nb6 {[%clk 0:01:39.4]} 27. Bb3 {[%clk 0:02:06.3]} 27... Bb5
{[%clk 0:01:27.4]} 28. Ne4 {[%clk 0:02:05.4]} 28... Nc4 {[%clk 0:01:23.8]} 29.
Bxc4 {[%clk 0:02:05.1]} 29... Bxc4 {[%clk 0:01:25.1]} 30. Nc5 {[%clk 0:02:07]}
30... Ra5 {[%clk 0:01:20.9]} 31. a4 {[%clk 0:02:07.8]} 31... e5 {[%clk
0:01:22.5]} 32. f3 {[%clk 0:02:06.7]} 32... exd4 {[%clk 0:01:23.4]} 33. exd4
{[%clk 0:02:08.6]} 33... Kf6 {[%clk 0:01:24.9]} 34. Kf2 {[%clk 0:02:10.2]} 34...
Ke7 {[%clk 0:01:21]} 35. Ke3 {[%clk 0:02:11.5]} 35... Bd5 {[%clk 0:01:22.5]} 36.
Kd3 {[%clk 0:02:11.7]} 36... Kd6 {[%clk 0:01:23.5]} 37. Kc3 {[%clk 0:02:13.2]}
37... Ra8 {[%clk 0:01:22.4]} 38. a5 {[%clk 0:02:13.6]} 38... Kc6 {[%clk
0:01:22.7]} 39. a6 {[%clk 0:02:14.8]} 39... f5 {[%clk 0:01:22.1]} 40. Re1 {[%clk
0:02:10.8]} 40... Ra7 {[%clk 0:01:15.4]} 41. Re8 {[%clk 0:02:10.3]} 41... h5
{[%clk 0:01:15.5]} 42. Rc8+ {[%clk 0:02:09.1]} 42... Kd6 {[%clk 0:01:16.7]} 43.
Kb4 {[%clk 0:02:02.1]} 43... Bc6 {[%clk 0:01:05.4]} 44. Ka5 {[%clk 0:02:02]}
44... Rc7 {[%clk 0:00:48.5]} 45. Rb8 {[%clk 0:01:57.2]} 45... g5 {[%clk
0:00:46.7]} 46. Kb6 {[%clk 0:01:57.2]} 46... g4 {[%clk 0:00:41.6]} 47. hxg4
{[%clk 0:01:55.2]} 47... fxg4 {[%clk 0:00:41.3]} 48. fxg4 {[%clk 0:01:55.9]}
48... h4 {[%clk 0:00:43.2]} 49. Rh8 {[%clk 0:01:55.7]} 49... Bxg2 {[%clk
0:00:42.9]} 50. Rxh4 {[%clk 0:01:56.8]} 50... Rc6+ {[%clk 0:00:43.4]} 51. Kb5
{[%clk 0:01:57.1]} 51... Bf1+ {[%clk 0:00:44.1]} 52. Ka5 {[%clk 0:01:58.4]}
52... Kd5 {[%clk 0:00:45.1]} 53. g5 {[%clk 0:01:58.6]} 53... Rg6 {[%clk
0:00:44.4]} 54. a7 {[%clk 0:01:58.9]} 54... Rg8 {[%clk 0:00:43.8]} 55. Rf4
{[%clk 0:01:58.1]} 55... Bg2 {[%clk 0:00:43]} 56. Kb6 {[%clk 0:01:58.2]} 56...
Rg6+ {[%clk 0:00:29.3]} 57. Rf6 {[%clk 0:01:48.6]} 57... Rg8 {[%clk 0:00:30.2]}
58. Nd7 {[%clk 0:01:39.4]} 58... Kxd4 {[%clk 0:00:22.5]} 59. g6 {[%clk
0:01:40.7]} 59... Rd8 {[%clk 0:00:18]} 60. g7 {[%clk 0:01:36.1]} 60... Kc4
{[%clk 0:00:17.3]} 61. Nf8 {[%clk 0:01:35.7]} 61... Bd5 {[%clk 0:00:14.6]} 62.
Kc7 {[%clk 0:01:36.4]} 62... Ra8 {[%clk 0:00:15]} 63. Ra6 {[%clk 0:01:37.5]}
63... Kb5 {[%clk 0:00:15.5]} 64. Ra1 {[%clk 0:01:38.8]} 64... Re8 {[%clk
0:00:16.4]} 65. Kd6 {[%clk 0:01:39]} 65... Ba8 {[%clk 0:00:15.4]} 66. g8=Q
{[%clk 0:01:39.5]} 66... Re2 {[%clk 0:00:15.4]} 67. Qb3# {[%clk 0:01:39.6]} 1-0